[Event "Late-Titled-Tuesday-Blitz-February-13-2024"]
[Site "Chess.com"]
[Date "2024.02.13"]
[Round "8"]
[White "ChadBiryani"]
[Black "Nf3c5"]
[Result "0-1"]
[WhiteElo "2449"]
[BlackElo "2551"]
[TimeControl "180+1"]
[EndTime "15:30:27 PST"]
[Termination "Nf3c5 won by checkmate"]

1. e4 {[%clk 0:02:59.3]} 1... e5 {[%clk 0:02:54.7]} 2. Nf3 {[%clk 0:02:58.1]}
2... Nc6 {[%clk 0:02:50]} 3. c3 {[%clk 0:02:58.1]} 3... d5 {[%clk 0:02:43.8]} 4.
d3 {[%clk 0:02:58.1]} 4... h6 {[%clk 0:02:32]} 5. h3 {[%clk 0:02:52]} 5... Nf6
{[%clk 0:02:31.5]} 6. Qc2 {[%clk 0:02:50]} 6... a5 {[%clk 0:02:31.4]} 7. Be2
{[%clk 0:02:43.3]} 7... Bc5 {[%clk 0:02:29.1]} 8. O-O {[%clk 0:02:42.6]} 8...
O-O {[%clk 0:02:28.9]} 9. Nxe5 {[%clk 0:02:37.3]} 9... Nxe5 {[%clk 0:02:10.9]}
10. d4 {[%clk 0:02:37.5]} 10... Bxd4 {[%clk 0:02:03.5]} 11. cxd4 {[%clk
0:02:36.3]} 11... Nc6 {[%clk 0:02:04.4]} 12. Qd1 {[%clk 0:02:20.7]} 12... Nxe4
{[%clk 0:02:02.3]} 13. Nc3 {[%clk 0:02:20.4]} 13... Bf5 {[%clk 0:01:57.3]} 14.
Bf4 {[%clk 0:02:15.9]} 14... Re8 {[%clk 0:01:44.8]} 15. Bf3 {[%clk 0:02:09.7]}
15... Nxc3 {[%clk 0:01:36.6]} 16. bxc3 {[%clk 0:02:09.3]} 16... Be4 {[%clk
0:01:37.5]} 17. Bg4 {[%clk 0:02:02.6]} 17... a4 {[%clk 0:01:27]} 18. Re1 {[%clk
0:01:51.3]} 18... b5 {[%clk 0:01:15.4]} 19. Be2 {[%clk 0:01:47.7]} 19... Rb8
{[%clk 0:01:13.1]} 20. Bf1 {[%clk 0:01:39.3]} 20... Rb7 {[%clk 0:00:59]} 21. Qg4
{[%clk 0:01:27.8]} 21... Qc8 {[%clk 0:00:52.5]} 22. Qg3 {[%clk 0:01:22]} 22...
Ne7 {[%clk 0:00:52.9]} 23. f3 {[%clk 0:01:13.1]} 23... Bg6 {[%clk 0:00:43.2]}
24. Qf2 {[%clk 0:01:09]} 24... Nf5 {[%clk 0:00:35.2]} 25. Rxe8+ {[%clk
0:01:06.5]} 25... Qxe8 {[%clk 0:00:36.1]} 26. Re1 {[%clk 0:01:06.5]} 26... Qd7
{[%clk 0:00:36.1]} 27. Bc1 {[%clk 0:00:56.1]} 27... Nd6 {[%clk 0:00:33.8]} 28.
Ba3 {[%clk 0:00:55.7]} 28... Rb8 {[%clk 0:00:31.8]} 29. Qb2 {[%clk 0:00:47.7]}
29... c6 {[%clk 0:00:31.1]} 30. Qc1 {[%clk 0:00:29.4]} 30... Re8 {[%clk
0:00:29]} 31. Kf2 {[%clk 0:00:28.1]} 31... Rxe1 {[%clk 0:00:27.9]} 32. Qxe1
{[%clk 0:00:29]} 32... Nf5 {[%clk 0:00:23.4]} 33. Qe5 {[%clk 0:00:25.4]} 33...
f6 {[%clk 0:00:21.9]} 34. Qb8+ {[%clk 0:00:24.9]} 34... Kh7 {[%clk 0:00:20.6]}
35. g4 {[%clk 0:00:25.5]} 35... Ne7 {[%clk 0:00:19.6]} 36. Qf8 {[%clk
0:00:17.7]} 36... Nc8 {[%clk 0:00:18.2]} 37. f4 {[%clk 0:00:16.2]} 37... Qe8
{[%clk 0:00:18]} 38. f5 {[%clk 0:00:14.3]} 38... Bf7 {[%clk 0:00:17.1]} 39. Qxe8
{[%clk 0:00:09.9]} 39... Bxe8 {[%clk 0:00:17.1]} 40. Bc5 {[%clk 0:00:10.4]}
40... Kg8 {[%clk 0:00:16.6]} 41. h4 {[%clk 0:00:10.2]} 41... Bd7 {[%clk
0:00:16.5]} 42. Kg3 {[%clk 0:00:10.4]} 42... Kf7 {[%clk 0:00:16.8]} 43. Kf4
{[%clk 0:00:10.8]} 43... Ne7 {[%clk 0:00:17.2]} 44. Bd3 {[%clk 0:00:10.9]} 44...
Ke8 {[%clk 0:00:16.3]} 45. g5 {[%clk 0:00:11.3]} 45... hxg5+ {[%clk 0:00:16.4]}
46. hxg5 {[%clk 0:00:11.4]} 46... fxg5+ {[%clk 0:00:17.1]} 47. Kxg5 {[%clk
0:00:12.2]} 47... Kf7 {[%clk 0:00:17.2]} 48. Bc2 {[%clk 0:00:10.9]} 48... Ng8
{[%clk 0:00:17.4]} 49. Bd1 {[%clk 0:00:08.8]} 49... Nf6 {[%clk 0:00:17.6]} 50.
Kf4 {[%clk 0:00:09.1]} 50... Ne4 {[%clk 0:00:16.7]} 51. Bh5+ {[%clk 0:00:06.9]}
51... Kf6 {[%clk 0:00:14.7]} 52. Bb6 {[%clk 0:00:04.6]} 52... Bxf5 {[%clk
0:00:13.8]} 53. Bd8+ {[%clk 0:00:04.2]} 53... Ke6 {[%clk 0:00:14.2]} 54. Ba5
{[%clk 0:00:03.4]} 54... g6 {[%clk 0:00:13.7]} 55. Be2 {[%clk 0:00:03.4]} 55...
Nd6 {[%clk 0:00:14]} 56. Bb4 {[%clk 0:00:02.9]} 56... Ne8 {[%clk 0:00:12]} 57.
Bf1 {[%clk 0:00:02.7]} 57... Nf6 {[%clk 0:00:12.2]} 58. Be2 {[%clk 0:00:03]}
58... Nh5+ {[%clk 0:00:12.2]} 59. Kg5 {[%clk 0:00:01.6]} 59... Ng3 {[%clk
0:00:11.9]} 60. Bf3 {[%clk 0:00:02.3]} 60... Be4 {[%clk 0:00:11.4]} 61. Bg4+
{[%clk 0:00:02.4]} 61... Bf5 {[%clk 0:00:11.8]} 62. Bf3 {[%clk 0:00:02.9]} 62...
Nf1 {[%clk 0:00:12.1]} 63. Kf4 {[%clk 0:00:02.8]} 63... Nd2 {[%clk 0:00:11.9]}
64. Be2 {[%clk 0:00:03]} 64... a3 {[%clk 0:00:10.1]} 65. Bxa3 {[%clk 0:00:02.9]}
65... Bb1 {[%clk 0:00:09.6]} 66. Bb4 {[%clk 0:00:02.6]} 66... Bxa2 {[%clk
0:00:09.6]} 67. Bd3 {[%clk 0:00:03]} 67... Kf7 {[%clk 0:00:09.1]} 68. Ke3 {[%clk
0:00:03]} 68... Nc4+ {[%clk 0:00:05.6]} 69. Kf4 {[%clk 0:00:03.6]} 69... Nd2
{[%clk 0:00:03.8]} 70. Kg5 {[%clk 0:00:03.3]} 70... Bb1 {[%clk 0:00:03.7]} 71.
Bxb1 {[%clk 0:00:01.3]} 71... Nxb1 {[%clk 0:00:04.6]} 72. Kf4 {[%clk 0:00:02]}
72... Kf6 {[%clk 0:00:04.5]} 73. Bd6 {[%clk 0:00:02.2]} 73... Nxc3 {[%clk
0:00:04]} 74. Be5+ {[%clk 0:00:02.1]} 74... Ke6 {[%clk 0:00:04.6]} 75. Bc7
{[%clk 0:00:02.4]} 75... Ne2+ {[%clk 0:00:04.5]} 76. Ke3 {[%clk 0:00:02.4]}
76... Nc3 {[%clk 0:00:05.4]} 77. Ba5 {[%clk 0:00:02.7]} 77... Ne4 {[%clk
0:00:05.9]} 78. Be1 {[%clk 0:00:02.8]} 78... Kf5 {[%clk 0:00:06.8]} 79. Bb4
{[%clk 0:00:02.6]} 79... g5 {[%clk 0:00:07.7]} 80. Ba5 {[%clk 0:00:02.5]} 80...
Kg4 {[%clk 0:00:08.2]} 81. Bc7 {[%clk 0:00:02.9]} 81... Kh3 {[%clk 0:00:08.6]}
82. Ba5 {[%clk 0:00:03.6]} 82... g4 {[%clk 0:00:09.1]} 83. Be1 {[%clk
0:00:03.9]} 83... g3 {[%clk 0:00:09.7]} 84. Ke2 {[%clk 0:00:04.3]} 84... g2
{[%clk 0:00:09.6]} 85. Bf2 {[%clk 0:00:04.7]} 85... Nxf2 {[%clk 0:00:09]} 86.
Kxf2 {[%clk 0:00:05.6]} 86... Kh2 {[%clk 0:00:09.5]} 87. Ke2 {[%clk 0:00:05.6]}
87... g1=Q {[%clk 0:00:10.4]} 88. Kd3 {[%clk 0:00:06.2]} 88... Qc1 {[%clk
0:00:10]} 89. Ke2 {[%clk 0:00:05.7]} 89... Qc4+ {[%clk 0:00:10.9]} 90. Ke3
{[%clk 0:00:06.2]} 90... b4 {[%clk 0:00:11.1]} 91. Kd2 {[%clk 0:00:05.5]} 91...
Qxd4+ {[%clk 0:00:12]} 92. Kc2 {[%clk 0:00:06.1]} 92... Qc3+ {[%clk 0:00:12.4]}
93. Kb1 {[%clk 0:00:07]} 93... Qd2 {[%clk 0:00:12.6]} 94. Ka1 {[%clk 0:00:07.3]}
94... b3 {[%clk 0:00:13.2]} 95. Kb1 {[%clk 0:00:08.2]} 95... Qc2+ {[%clk
0:00:12.3]} 96. Ka1 {[%clk 0:00:09.1]} 96... Qc1# {[%clk 0:00:13.2]} 0-1

[Event "Late-Titled-Tuesday-Blitz-February-13-2024"]
[Site "Chess.com"]
[Date "2024.02.13"]
[Round "8"]
[White "MetiForce"]
[Black "Sl4werThanYou"]
[Result "1/2-1/2"]
[WhiteElo "2866"]
[BlackElo "2679"]
[TimeControl "180+1"]
[EndTime "15:31:15 PST"]
[Termination "Game drawn by repetition"]

1. d4 {[%clk 0:02:45]} 1... Nf6 {[%clk 0:02:59.5]} 2. c4 {[%clk 0:02:45.7]} 2...
e6 {[%clk 0:02:59.1]} 3. Nc3 {[%clk 0:02:46.4]} 3... Bb4 {[%clk 0:02:55.6]} 4.
Qb3 {[%clk 0:02:46]} 4... a5 {[%clk 0:02:52.4]} 5. a3 {[%clk 0:02:43.6]} 5...
Bxc3+ {[%clk 0:02:51.9]} 6. Qxc3 {[%clk 0:02:44.5]} 6... O-O {[%clk 0:02:51.2]}
7. f3 {[%clk 0:02:44.5]} 7... d6 {[%clk 0:02:38.5]} 8. Nh3 {[%clk 0:02:43.3]}
8... Nc6 {[%clk 0:02:28.4]} 9. Nf2 {[%clk 0:02:42.7]} 9... a4 {[%clk 0:02:27.4]}
10. e4 {[%clk 0:02:37]} 10... e5 {[%clk 0:02:26.2]} 11. d5 {[%clk 0:02:37.3]}
11... Nd4 {[%clk 0:02:26.9]} 12. Be3 {[%clk 0:02:37.3]} 12... Nb3 {[%clk
0:02:23.5]} 13. Rd1 {[%clk 0:02:37.9]} 13... Nh5 {[%clk 0:02:21.1]} 14. Bd3
{[%clk 0:02:29]} 14... Nf4 {[%clk 0:02:17.4]} 15. O-O {[%clk 0:02:23.5]} 15...
Nxd3 {[%clk 0:02:14.3]} 16. Nxd3 {[%clk 0:02:23.1]} 16... b6 {[%clk 0:02:10.8]}
17. Nc1 {[%clk 0:02:22.6]} 17... Nxc1 {[%clk 0:02:09.6]} 18. Rxc1 {[%clk
0:02:19.7]} 18... f5 {[%clk 0:02:10.5]} 19. f4 {[%clk 0:02:20]} 19... exf4
{[%clk 0:02:07.5]} 20. Rxf4 {[%clk 0:02:19.8]} 20... fxe4 {[%clk 0:02:07.2]} 21.
Rxe4 {[%clk 0:02:16]} 21... Bf5 {[%clk 0:02:06.7]} 22. Rf4 {[%clk 0:02:16.3]}
22... Qd7 {[%clk 0:02:06.2]} 23. Bd4 {[%clk 0:02:16.2]} 23... Bg6 {[%clk
0:02:04.7]} 24. Rxf8+ {[%clk 0:02:11.2]} 24... Rxf8 {[%clk 0:02:04.5]} 25. h3
{[%clk 0:02:11.3]} 25... Re8 {[%clk 0:02:01.2]} 26. Rf1 {[%clk 0:02:05.1]} 26...
h6 {[%clk 0:01:58.6]} 27. Qg3 {[%clk 0:02:02.5]} 27... Kh7 {[%clk 0:01:55.5]}
28. Rf4 {[%clk 0:02:02.8]} 28... Re4 {[%clk 0:01:50.9]} 29. Rxe4 {[%clk
0:01:57.7]} 29... Bxe4 {[%clk 0:01:51.8]} 30. Qh4 {[%clk 0:01:32.8]} 30... Bd3
{[%clk 0:01:37.7]} 31. Bc3 {[%clk 0:01:32.4]} 31... Qf7 {[%clk 0:01:35.9]} 32.
Qd4 {[%clk 0:01:29.8]} 32... Qg6 {[%clk 0:01:35.8]} 33. Kf2 {[%clk 0:01:27.2]}
33... Be4 {[%clk 0:01:35.1]} 34. g4 {[%clk 0:01:26.5]} 34... Qf7+ {[%clk
0:01:35.1]} 35. Ke1 {[%clk 0:01:24.3]} 35... Bg6 {[%clk 0:01:29.9]} 36. Kd2
{[%clk 0:01:23.3]} 36... h5 {[%clk 0:01:26.7]} 37. Ke1 {[%clk 0:01:03.3]} 37...
h4 {[%clk 0:01:16.2]} 38. Qe3 {[%clk 0:00:57.2]} 38... b5 {[%clk 0:00:47.9]} 39.
Qg5 {[%clk 0:00:48]} 39... bxc4 {[%clk 0:00:45.1]} 40. Qxh4+ {[%clk 0:00:48.2]}
40... Kg8 {[%clk 0:00:45.9]} 41. Qd8+ {[%clk 0:00:48.1]} 41... Kh7 {[%clk
0:00:46.6]} 42. Qg5 {[%clk 0:00:45.1]} 42... Be4 {[%clk 0:00:30.6]} 43. Qh4+
{[%clk 0:00:39.2]} 43... Kg8 {[%clk 0:00:31.2]} 44. Qd8+ {[%clk 0:00:39.6]}
44... Kh7 {[%clk 0:00:31.7]} 45. Qg5 {[%clk 0:00:27.4]} 45... Bd3 {[%clk
0:00:14.8]} 46. Bd4 {[%clk 0:00:13.5]} 46... Be4 {[%clk 0:00:04.7]} 47. h4
{[%clk 0:00:09.9]} 47... Bd3 {[%clk 0:00:03.2]} 48. h5 {[%clk 0:00:09.8]} 48...
Kg8 {[%clk 0:00:02.3]} 49. h6 {[%clk 0:00:08.5]} 49... Qf1+ {[%clk 0:00:01.9]}
50. Kd2 {[%clk 0:00:08.4]} 50... Qe2+ {[%clk 0:00:02.8]} 51. Kc3 {[%clk
0:00:08.2]} 51... Qe1+ {[%clk 0:00:03.4]} 52. Qd2 {[%clk 0:00:07.8]} 52... Qxd2+
{[%clk 0:00:02.8]} 53. Kxd2 {[%clk 0:00:08.7]} 53... gxh6 {[%clk 0:00:02.9]} 54.
Kc3 {[%clk 0:00:08.9]} 54... Kf7 {[%clk 0:00:02.9]} 55. Be3 {[%clk 0:00:09.5]}
55... Kg6 {[%clk 0:00:03.3]} 56. Kd4 {[%clk 0:00:08.3]} 56... Be2 {[%clk
0:00:03.8]} 57. Bd2 {[%clk 0:00:06.5]} 57... Bxg4 {[%clk 0:00:03.7]} 58. Ba5
{[%clk 0:00:07.2]} 58... Kf6 {[%clk 0:00:04.1]} 59. Bxc7 {[%clk 0:00:07.8]}
59... Ke7 {[%clk 0:00:04.8]} 60. Ba5 {[%clk 0:00:07.8]} 60... Be2 {[%clk
0:00:03.9]} 61. Be1 {[%clk 0:00:07]} 61... h5 {[%clk 0:00:04]} 62. Bh4+ {[%clk
0:00:07.9]} 62... Kd7 {[%clk 0:00:04.5]} 63. Bg3 {[%clk 0:00:08.1]} 63... Bd3
{[%clk 0:00:05]} 64. Bh4 {[%clk 0:00:08.6]} 64... Kc7 {[%clk 0:00:05.2]} 65. Bg3
{[%clk 0:00:09.3]} 65... Bf1 {[%clk 0:00:05.5]} 66. Bh4 {[%clk 0:00:09.6]} 66...
Kd7 {[%clk 0:00:05.5]} 67. Bg3 {[%clk 0:00:10.3]} 67... Ke7 {[%clk 0:00:05.9]}
68. Bh4+ {[%clk 0:00:10.9]} 68... Ke8 {[%clk 0:00:06]} 69. Bg3 {[%clk
0:00:11.4]} 69... Kd7 {[%clk 0:00:06.4]} 70. Bh4 {[%clk 0:00:11.8]} 70... Bd3
{[%clk 0:00:07]} 71. Bg3 {[%clk 0:00:12.2]} 71... Be2 {[%clk 0:00:04.4]} 72. Bh4
{[%clk 0:00:12.6]} 72... Kc7 {[%clk 0:00:03.6]} 73. Bg3 {[%clk 0:00:12.8]} 73...
Bf1 {[%clk 0:00:04]} 74. Bh4 {[%clk 0:00:13.1]} 74... Bd3 {[%clk 0:00:01.6]} 75.
Bg3 {[%clk 0:00:13.5]} 75... Kd7 {[%clk 0:00:02.5]} 76. Bh4 {[%clk 0:00:13.9]}
76... Ke8 {[%clk 0:00:03.1]} 77. Bg3 {[%clk 0:00:14.3]} 77... Ke7 {[%clk
0:00:04]} 78. Bh4+ {[%clk 0:00:14.9]} 78... Kf7 {[%clk 0:00:04.4]} 79. Bg3
{[%clk 0:00:15.6]} 79... Kf6 {[%clk 0:00:03.7]} 80. Bxd6 {[%clk 0:00:16]} 80...
h4 {[%clk 0:00:04]} 81. Bh2 {[%clk 0:00:12.7]} 81... Kf5 {[%clk 0:00:03.7]} 82.
Kc5 {[%clk 0:00:11.7]} 82... Be2 {[%clk 0:00:03]} 83. Kb4 {[%clk 0:00:08.7]}
83... Bf3 {[%clk 0:00:02]} 84. d6 {[%clk 0:00:06.2]} 84... Bc6 {[%clk
0:00:02.2]} 85. Kxc4 {[%clk 0:00:05.1]} 85... Ke6 {[%clk 0:00:02.3]} 86. Kb4
{[%clk 0:00:03.7]} 86... Kd7 {[%clk 0:00:02.8]} 87. b3 {[%clk 0:00:04.3]} 87...
axb3 {[%clk 0:00:03.7]} 88. Kxb3 {[%clk 0:00:05.2]} 88... Bf3 {[%clk 0:00:02.1]}
89. Kb4 {[%clk 0:00:05.3]} 89... Kc6 {[%clk 0:00:03]} 90. a4 {[%clk 0:00:02.8]}
90... Be2 {[%clk 0:00:03.6]} 91. Kc3 {[%clk 0:00:03.2]} 91... Bd1 {[%clk
0:00:03.4]} 92. a5 {[%clk 0:00:02.9]} 92... Bg4 {[%clk 0:00:03.4]} 93. Kc4
{[%clk 0:00:02.9]} 93... Be2+ {[%clk 0:00:03.3]} 94. Kd4 {[%clk 0:00:03.5]}
94... h3 {[%clk 0:00:03]} 95. Ke5 {[%clk 0:00:03.5]} 95... Kd7 {[%clk
0:00:03.3]} 96. Kd5 {[%clk 0:00:03.4]} 96... Bf3+ {[%clk 0:00:01.8]} 97. Kc5
{[%clk 0:00:03.9]} 97... Kc8 {[%clk 0:00:02.3]} 98. Kb6 {[%clk 0:00:03.8]} 98...
Bg2 {[%clk 0:00:02]} 99. Bg1 {[%clk 0:00:04]} 99... Bf3 {[%clk 0:00:02.4]} 100.
Bh2 {[%clk 0:00:04.6]} 100... Bg2 {[%clk 0:00:03]} 101. Kb5 {[%clk 0:00:04.6]}
101... Kd7 {[%clk 0:00:02.9]} 102. Kc5 {[%clk 0:00:05.1]} 102... Bf3 {[%clk
0:00:03.4]} 103. Kd4 {[%clk 0:00:05.3]} 103... Bg2 {[%clk 0:00:04.3]} 104. Ke5
{[%clk 0:00:05.9]} 104... Bc6 {[%clk 0:00:03.8]} 105. Kf5 {[%clk 0:00:06.1]}
105... Bg2 {[%clk 0:00:04.7]} 106. Kg4 {[%clk 0:00:06.7]} 106... Kc6 {[%clk
0:00:04.6]} 107. Kf5 {[%clk 0:00:06.2]} 107... Kd7 {[%clk 0:00:04.8]} 108. Kf6
{[%clk 0:00:06.9]} 108... Bb7 {[%clk 0:00:04.8]} 109. Ke5 {[%clk 0:00:07.5]}
109... Bg2 {[%clk 0:00:05.1]} 110. Kd4 {[%clk 0:00:08.2]} 110... Bb7 {[%clk
0:00:05.4]} 111. Kc5 {[%clk 0:00:09.1]} 111... Bg2 {[%clk 0:00:05.9]} 112. Kb6
{[%clk 0:00:10]} 112... Kc8 {[%clk 0:00:06.4]} 1/2-1/2

[Event "Late-Titled-Tuesday-Blitz-February-13-2024"]
[Site "Chess.com"]
[Date "2024.02.13"]
[Round "9"]
[White "Yurovskykh_Oleksandr"]
[Black "tgpgoat"]
[Result "0-1"]
[WhiteElo "2674"]
[BlackElo "2548"]
[TimeControl "180+1"]
[EndTime "15:41:34 PST"]
[Termination "tgpgoat won by resignation"]

1. d4 {[%clk 0:03:00.9]} 1... Nf6 {[%clk 0:02:59.5]} 2. Nf3 {[%clk 0:02:59.3]}
2... d5 {[%clk 0:02:59.2]} 3. c3 {[%clk 0:02:55.8]} 3... g6 {[%clk 0:02:59]} 4.
Bg5 {[%clk 0:02:54.4]} 4... Ne4 {[%clk 0:02:58.4]} 5. Bh4 {[%clk 0:02:54]} 5...
Bg7 {[%clk 0:02:55.4]} 6. e3 {[%clk 0:02:52.9]} 6... O-O {[%clk 0:02:54.8]} 7.
Nbd2 {[%clk 0:02:51.8]} 7... c5 {[%clk 0:02:54.4]} 8. Nxe4 {[%clk 0:02:50.6]}
8... dxe4 {[%clk 0:02:55.3]} 9. Nd2 {[%clk 0:02:51.1]} 9... cxd4 {[%clk
0:02:55.5]} 10. exd4 {[%clk 0:02:50.7]} 10... Bf5 {[%clk 0:02:35.4]} 11. Qb3
{[%clk 0:02:47.5]} 11... Nc6 {[%clk 0:02:28.4]} 12. Qxb7 {[%clk 0:02:28.3]}
12... Nxd4 {[%clk 0:02:24.1]} 13. cxd4 {[%clk 0:01:03.6]} 13... Qxd4 {[%clk
0:02:25]} 14. Nc4 {[%clk 0:01:02.9]} 14... Rab8 {[%clk 0:02:08]} 15. Qa6 {[%clk
0:01:00.1]} 15... Rxb2 {[%clk 0:02:03.3]} 16. Be2 {[%clk 0:00:52.3]} 16... Rxe2+
{[%clk 0:01:47.7]} 17. Kxe2 {[%clk 0:00:53.2]} 17... Qd3+ {[%clk 0:01:47.4]} 18.
Ke1 {[%clk 0:00:51.5]} 18... Bc3+ {[%clk 0:01:46.7]} 0-1

[Event "Late-Titled-Tuesday-Blitz-February-13-2024"]
[Site "Chess.com"]
[Date "2024.02.13"]
[Round "9"]
[White "Kotlyar_K"]
[Black "Inepton_Fermion"]
[Result "1-0"]
[WhiteElo "2529"]
[BlackElo "2380"]
[TimeControl "180+1"]
[EndTime "15:41:40 PST"]
[Termination "Kotlyar_K won by checkmate"]

1. d4 {[%clk 0:02:55.9]} 1... Nf6 {[%clk 0:02:58.6]} 2. c4 {[%clk 0:02:55.9]}
2... e6 {[%clk 0:02:58.9]} 3. Nc3 {[%clk 0:02:55.8]} 3... Bb4 {[%clk 0:02:59.5]}
4. e3 {[%clk 0:02:56.3]} 4... b6 {[%clk 0:02:59.4]} 5. Bd2 {[%clk 0:02:54.1]}
5... Bb7 {[%clk 0:02:58.1]} 6. Nf3 {[%clk 0:02:54]} 6... O-O {[%clk 0:02:56.4]}
7. Bd3 {[%clk 0:02:53.9]} 7... Bxc3 {[%clk 0:02:46.1]} 8. Bxc3 {[%clk
0:02:53.9]} 8... Ne4 {[%clk 0:02:47]} 9. Bxe4 {[%clk 0:02:54.5]} 9... Bxe4
{[%clk 0:02:46.9]} 10. d5 {[%clk 0:02:55.2]} 10... Bg6 {[%clk 0:02:11.4]} 11. h4
{[%clk 0:02:51.5]} 11... h6 {[%clk 0:02:03.5]} 12. Ne5 {[%clk 0:02:47.4]} 12...
Bh7 {[%clk 0:01:36]} 13. Qg4 {[%clk 0:02:46.5]} 13... f6 {[%clk 0:01:36.3]} 14.
Ng6 {[%clk 0:02:31.3]} 14... Bxg6 {[%clk 0:01:33.7]} 15. Qxg6 {[%clk 0:02:32.2]}
15... e5 {[%clk 0:01:27.1]} 16. O-O-O {[%clk 0:02:27]} 16... d6 {[%clk
0:01:25.7]} 17. g4 {[%clk 0:02:23.5]} 17... Nd7 {[%clk 0:01:17.2]} 18. g5 {[%clk
0:02:20.7]} 18... fxg5 {[%clk 0:01:17.4]} 19. hxg5 {[%clk 0:02:21.6]} 19... Qxg5
{[%clk 0:01:14.4]} 20. Qe6+ {[%clk 0:02:17.7]} 20... Rf7 {[%clk 0:01:14.6]} 21.
Rdg1 {[%clk 0:02:16.6]} 21... Qf6 {[%clk 0:01:12.5]} 22. Rxh6 {[%clk 0:02:06.2]}
22... Qxf2 {[%clk 0:00:45.2]} 23. Rxg7+ {[%clk 0:02:03]} 23... Kxg7 {[%clk
0:00:40.3]} 24. Qg6+ {[%clk 0:02:03]} 24... Kf8 {[%clk 0:00:41.2]} 25. Rh8+
{[%clk 0:02:03.9]} 25... Ke7 {[%clk 0:00:42.1]} 26. Qe6# {[%clk 0:02:04.7]} 1-0

[Event "Late-Titled-Tuesday-Blitz-February-13-2024"]
[Site "Chess.com"]
[Date "2024.02.13"]
[Round "9"]
[White "WilsonPalencia21"]
[Black "IraZyne"]
[Result "1-0"]
[WhiteElo "2532"]
[BlackElo "2334"]
[TimeControl "180+1"]
[EndTime "15:42:02 PST"]
[Termination "WilsonPalencia21 won by resignation"]

1. d4 {[%clk 0:02:54.7]} 1... d5 {[%clk 0:02:54.9]} 2. c4 {[%clk 0:02:54.5]}
2... e6 {[%clk 0:02:53.9]} 3. Nf3 {[%clk 0:02:54.5]} 3... c6 {[%clk 0:02:52.6]}
4. Nc3 {[%clk 0:02:51.2]} 4... dxc4 {[%clk 0:02:52.2]} 5. a4 {[%clk 0:02:48.6]}
5... Bb4 {[%clk 0:02:51.2]} 6. e3 {[%clk 0:02:47.3]} 6... b5 {[%clk 0:02:50.6]}
7. Bd2 {[%clk 0:02:47.8]} 7... a5 {[%clk 0:02:50.6]} 8. Ne5 {[%clk 0:02:44.8]}
8... Bb7 {[%clk 0:02:45.4]} 9. Qf3 {[%clk 0:02:38.1]} 9... Qe7 {[%clk
0:02:45.4]} 10. Qg3 {[%clk 0:02:29.7]} 10... f6 {[%clk 0:02:33.5]} 11. Nf3
{[%clk 0:02:26.3]} 11... Nh6 {[%clk 0:02:32.6]} 12. axb5 {[%clk 0:02:20.4]}
12... Bxc3 {[%clk 0:02:32.1]} 13. Bxc3 {[%clk 0:02:20.5]} 13... cxb5 {[%clk
0:02:32.2]} 14. Rxa5 {[%clk 0:02:16.3]} 14... O-O {[%clk 0:02:07.9]} 15. Rxb5
{[%clk 0:02:12.5]} 15... Ra1+ {[%clk 0:02:04]} 16. Kd2 {[%clk 0:02:12.4]} 16...
Bd5 {[%clk 0:01:53.9]} 17. Rxb8 {[%clk 0:02:10.5]} 17... Nf5 {[%clk 0:01:51.5]}
18. Rxf8+ {[%clk 0:02:05.2]} 18... Qxf8 {[%clk 0:01:51.6]} 19. Qc7 {[%clk
0:02:04.5]} 19... Qa8 {[%clk 0:01:47.6]} 20. Rg1 {[%clk 0:01:50.2]} 20... Qa4
{[%clk 0:01:46.4]} 21. Be2 {[%clk 0:01:46.4]} 21... Rxg1 {[%clk 0:01:30.2]} 22.
Nxg1 {[%clk 0:01:45.3]} 22... h5 {[%clk 0:01:26.9]} 23. f3 {[%clk 0:01:40.7]}
23... Qa1 {[%clk 0:01:22.5]} 24. e4 {[%clk 0:01:25.9]} 24... Qxg1 {[%clk
0:01:21.9]} 25. exf5 {[%clk 0:01:21.9]} 25... Qxg2 {[%clk 0:01:17.7]} 26. Qg3
{[%clk 0:01:12.8]} 1-0

[Event "Late-Titled-Tuesday-Blitz-February-13-2024"]
[Site "Chess.com"]
[Date "2024.02.13"]
[Round "9"]
[White "ChristopherYoo"]
[Black "mbojan"]
[Result "1-0"]
[WhiteElo "2971"]
[BlackElo "2851"]
[TimeControl "180+1"]
[EndTime "15:42:26 PST"]
[Termination "ChristopherYoo won by resignation"]

1. Nf3 {[%clk 0:03:00.9]} 1... g6 {[%clk 0:03:00.2]} 2. e4 {[%clk 0:02:59.1]}
2... Nf6 {[%clk 0:03:00.6]} 3. Nc3 {[%clk 0:02:55.6]} 3... d6 {[%clk 0:02:59.2]}
4. d4 {[%clk 0:02:55.8]} 4... Bg7 {[%clk 0:02:59.6]} 5. Bc4 {[%clk 0:02:55.8]}
5... O-O {[%clk 0:02:59.1]} 6. O-O {[%clk 0:02:53.4]} 6... Nc6 {[%clk
0:02:14.1]} 7. h3 {[%clk 0:02:41.8]} 7... a6 {[%clk 0:02:09.9]} 8. e5 {[%clk
0:02:25.7]} 8... Nd7 {[%clk 0:01:59]} 9. e6 {[%clk 0:02:17.5]} 9... Nb6 {[%clk
0:01:50]} 10. exf7+ {[%clk 0:02:15.1]} 10... Kh8 {[%clk 0:01:50.3]} 11. Bd3
{[%clk 0:02:05.6]} 11... Bf6 {[%clk 0:01:08.4]} 12. Ne4 {[%clk 0:01:59.5]} 12...
Rxf7 {[%clk 0:01:02.1]} 13. Nfg5 {[%clk 0:01:59.8]} 13... Rg7 {[%clk 0:01:00.1]}
14. c3 {[%clk 0:02:00.4]} 14... Nd5 {[%clk 0:00:59.8]} 15. Bc4 {[%clk
0:01:55.1]} 15... e6 {[%clk 0:00:56]} 16. Qf3 {[%clk 0:01:47.4]} 16... Bxg5
{[%clk 0:00:18.9]} 17. Bxg5 {[%clk 0:01:45.8]} 17... Qe8 {[%clk 0:00:19.5]} 18.
Nf6 {[%clk 0:01:42.7]} 18... Qf7 {[%clk 0:00:18.7]} 19. Nxd5 {[%clk 0:01:41.5]}
19... exd5 {[%clk 0:00:18.6]} 20. Bxd5 {[%clk 0:01:40.1]} 20... Be6 {[%clk
0:00:17]} 21. Bxe6 {[%clk 0:01:38.7]} 21... Qxe6 {[%clk 0:00:17.1]} 22. d5
{[%clk 0:01:39.4]} 22... Qe5 {[%clk 0:00:17.4]} 23. Bf6 {[%clk 0:01:39.2]} 23...
Qh2+ {[%clk 0:00:16.1]} 1-0